{"text_format":"1","workbook":"xlsx","n_sheets":4,"sheets":["KS-ECS-590","Feeding Area Instructions","Feeding Area Assessment Tool","Dropdown Lists"],"not_rendered":{"charts":0,"images":51,"macros":1,"external_links":0,"defined_names":4,"comments":0,"pivot_tables":0},"unopened":[],"bounds":{"document_bytes":16777216,"sheet_cells":100000,"rows_first":2000,"rows_last":500,"rows_between":2000,"halvings":0,"cell_chars":16384,"cell_head_chars":4096},"cells_cut":0,"cells_raw":0,"read":"whole","date_system":"1900"}

{"sheet":"KS-ECS-590","index":0,"n_rows":146,"n_cols":154,"rows_kept":146,"cut":false,"hidden":false,"merged":[[104,0,104,37],[105,0,105,37],[55,70,55,72],[55,73,55,75],[0,62,0,75],[0,0,0,13],[0,14,0,61],[100,0,100,37],[9,0,9,75],[21,0,21,75],[5,52,5,56],[5,57,5,75],[5,36,5,50],[5,30,5,35],[5,0,5,6],[8,0,8,75],[3,58,3,75],[3,4,3,30],[3,0,3,3],[57,31,57,33],[55,64,55,66],[55,61,55,63],[55,55,55,57],[55,58,55,60],[10,6,10,30],[5,7,5,28],[11,13,11,30],[11,73,20,75],[10,38,20,38],[10,39,10,75],[11,39,11,49],[11,50,11,66],[13,55,13,71],[14,39,14,71],[12,57,12,71],[52,0,52,8],[53,0,53,8],[53,22,53,27],[52,22,52,27],[54,0,54,75],[52,46,52,48],[52,49,52,51],[52,52,52,54],[55,37,55,39],[52,34,52,36],[53,31,53,33],[53,34,53,36],[52,31,52,33],[57,61,57,63],[56,0,56,75],[55,67,55,69],[57,34,57,36],[57,37,57,39],[57,40,57,42],[57,43,57,45],[55,40,55,42],[55,43,55,45],[57,64,57,66],[55,49,55,51],[55,52,55,54],[55,46,55,48],[46,46,46,51],[46,52,46,57],[46,58,46,63],[46,64,46,69],[46,0,47,8],[44,0,44,27],[40,40,40,45],[40,46,40,51],[47,49,47,51],[40,34,40,39],[42,46,42,51],[42,0,42,27],[41,28,41,33],[41,0,41,27],[44,28,44,33],[44,34,44,39],[45,0,45,75],[44,46,44,51],[46,70,46,75],[47,73,47,75],[47,70,47,72],[41,34,41,39],[41,40,41,45],[41,46,41,51],[28,35,28,39],[28,40,28,44],[28,45,28,49],[37,28,37,33],[30,0,30,75],[36,58,36,63],[36,64,36,69],[36,70,36,75],[37,58,37,63],[37,64,37,69],[28,50,28,54],[37,34,37,39],[37,40,37,45],[37,46,37,51],[37,52,37,57],[28,55,28,59],[36,40,36,45],[36,46,36,51],[36,52,36,57],[28,30,28,34],[36,0,36,27],[35,0,35,27],[32,0,33,27],[33,28,33,69],[26,35,26,39],[26,40,26,44],[26,45,26,49],[23,14,23,75],[24,47,24,48],[26,55,26,59],[26,60,26,64],[26,65,26,69],[26,70,26,74],[24,15,24,16],[24,34,24,41],[24,31,24,32],[26,20,26,24],[26,10,26,14],[26,15,26,19],[93,44,93,75],[94,44,94,75],[31,0,31,75],[27,70,27,74],[87,0,87,75],[91,6,91,37],[92,6,92,37],[90,0,90,2],[27,50,27,54],[27,55,27,59],[27,0,27,4],[27,5,27,9],[27,10,27,14],[27,15,27,49],[28,60,28,64],[28,65,28,69],[28,0,28,4],[28,5,28,9],[28,10,28,14],[28,70,28,74],[28,15,28,19],[28,20,28,24],[28,25,28,29],[55,0,55,27],[1,66,1,75],[1,0,1,9],[1,10,1,65],[3,52,3,57],[3,36,3,50],[3,32,3,35],[96,6,96,37],[90,38,90,40],[91,38,98,43],[94,6,94,37],[90,41,90,43],[2,0,2,75],[4,0,4,75],[55,28,55,30],[55,31,55,33],[55,34,55,36],[24,26,24,30],[92,44,92,75],[27,60,27,64],[27,65,27,69],[26,50,26,54],[25,0,25,75],[26,0,26,4],[26,5,26,9],[51,0,51,8],[46,22,47,27],[46,34,46,39],[47,31,47,33],[47,28,47,30],[46,28,46,33],[47,34,47,36],[47,37,47,39],[53,28,53,30],[52,37,52,39],[51,34,51,36],[50,34,50,36],[50,37,50,39],[49,22,49,27],[46,14,47,21],[46,9,47,13],[48,28,48,30],[48,31,48,33],[48,34,48,36],[48,37,48,39],[49,28,49,30],[49,31,49,33],[49,37,49,39],[50,14,50,21],[48,49,48,51],[48,52,48,54],[49,40,49,42],[49,43,49,45],[49,46,49,48],[49,49,49,51],[49,52,49,54],[49,55,49,57],[48,55,48,57],[47,58,47,60],[47,61,47,63],[47,64,47,66],[50,64,50,66],[50,67,50,69],[49,73,49,75],[49,67,49,69],[50,70,50,72],[50,73,50,75],[49,58,49,60],[49,61,49,63],[49,64,49,66],[47,67,47,69],[48,58,48,60],[48,61,48,63],[48,64,48,66],[48,67,48,69],[50,61,50,63],[42,34,42,39],[44,40,44,45],[42,40,42,45],[50,52,50,54],[49,34,49,36],[47,52,47,54],[47,55,47,57],[48,40,48,42],[48,43,48,45],[48,46,48,48],[47,40,47,42],[47,43,47,45],[47,46,47,48],[50,46,50,48],[50,40,50,42],[50,43,50,45],[43,0,43,75],[46,40,46,45],[42,64,42,69],[42,70,42,75],[44,52,44,57],[48,70,48,72],[48,73,48,75],[44,58,44,63],[50,55,50,57],[49,70,49,72],[38,70,38,75],[34,70,34,75],[38,40,38,45],[40,58,40,63],[35,28,35,75],[38,34,38,39],[34,28,34,33],[34,34,34,39],[34,40,34,45],[34,46,34,51],[34,52,34,57],[39,34,39,39],[39,40,39,45],[39,46,39,51],[38,52,38,57],[38,58,38,63],[38,64,38,69],[39,58,39,63],[39,64,39,69],[50,49,50,51],[50,58,50,60],[32,70,32,75],[33,70,33,75],[32,34,32,39],[32,40,32,45],[32,46,32,51],[32,52,32,57],[32,58,32,63],[32,64,32,69],[37,70,37,75],[34,58,34,63],[34,64,34,69],[38,46,38,51],[36,34,36,39],[39,28,39,33],[39,70,39,75],[39,52,39,57],[42,58,42,63],[42,52,42,57],[40,70,40,75],[41,58,41,63],[41,64,41,69],[40,64,40,69],[40,52,40,57],[41,52,41,57],[41,70,41,75],[51,58,51,60],[51,61,51,63],[51,64,51,66],[44,70,44,75],[44,64,44,69],[51,31,51,33],[51,28,51,30],[51,22,51,27],[53,49,53,51],[53,37,53,39],[51,49,51,51],[51,37,51,39],[51,40,51,42],[52,58,52,60],[52,61,52,63],[50,31,50,33],[50,28,50,30],[50,22,50,27],[53,73,53,75],[53,70,53,72],[53,58,53,60],[52,67,52,69],[52,70,52,72],[52,73,52,75],[144,0,145,7],[145,8,145,75],[144,8,144,75],[135,38,135,61],[135,63,135,75],[133,0,133,23],[133,25,133,37],[95,6,95,37],[135,0,135,27],[137,0,137,76],[142,0,142,17],[142,25,142,37],[128,38,128,75],[131,38,131,75],[132,38,132,75],[126,38,126,61],[126,63,126,75],[91,0,98,5],[99,0,99,75],[101,0,101,37],[101,38,105,75],[100,38,100,75],[102,0,102,37],[103,0,103,37],[134,0,134,37],[106,0,106,75],[20,0,20,12],[19,9,19,30],[20,13,20,30],[91,44,91,75],[97,44,97,75],[97,6,97,37],[82,66,82,75],[83,10,83,65],[127,38,127,75],[128,0,128,37],[131,0,132,37],[57,28,57,30],[84,0,84,75],[82,0,82,9],[82,10,82,65],[93,6,93,37],[90,3,90,5],[89,0,89,75],[88,21,88,75],[90,6,90,37],[51,67,51,69],[61,0,61,75],[126,0,126,37],[53,9,53,13],[53,14,53,21],[51,9,51,13],[51,14,51,21],[52,9,52,13],[52,14,52,21],[75,8,75,75],[74,0,75,7],[57,46,57,48],[57,49,57,51],[57,67,57,69],[57,52,57,54],[57,55,57,57],[57,58,57,60],[57,70,57,72],[57,73,57,75],[51,43,51,45],[51,46,51,48],[53,64,53,66],[51,70,51,72],[51,73,51,75],[51,52,51,54],[51,55,51,57],[118,0,118,37],[122,0,123,37],[124,0,124,23],[119,0,120,83],[123,38,123,75],[122,38,122,75],[117,38,118,75],[124,25,124,37],[124,38,125,75],[83,0,83,9],[57,0,57,27],[52,28,52,30],[117,0,117,23],[117,25,117,37],[86,0,86,75],[85,7,85,26],[85,33,85,43],[95,44,95,75],[96,44,96,75],[74,8,74,75],[83,66,83,75],[53,67,53,69],[52,64,52,66],[53,61,53,63],[53,55,53,57],[90,44,90,75],[53,40,53,42],[52,40,52,42],[53,43,53,45],[52,43,52,45],[53,46,53,48],[52,55,52,57],[53,52,53,54],[50,9,50,13],[49,14,49,21],[49,9,49,13],[49,0,49,8],[48,22,48,27],[48,14,48,21],[48,9,48,13],[48,0,48,8],[50,0,50,8],[39,0,39,27],[38,28,38,33],[38,0,38,27],[40,28,40,33],[40,0,40,27],[26,25,26,29],[26,30,26,34],[12,9,12,30],[12,0,12,8],[16,9,16,30],[16,0,16,8],[15,7,15,30],[15,0,15,6],[13,0,13,4],[14,0,14,3],[17,9,17,30],[17,0,17,8],[32,28,32,33],[107,0,110,77],[14,4,14,30],[13,5,13,30],[115,0,116,37],[112,0,114,75],[115,38,116,75],[111,0,111,47],[34,0,34,27],[18,7,18,30],[18,0,18,6],[19,0,19,8],[22,0,22,75],[10,31,20,37],[15,39,20,71],[12,39,12,56],[13,39,13,54],[10,0,10,5],[11,0,11,12],[42,28,42,33],[23,0,23,13],[24,8,24,14],[24,42,24,46],[37,0,37,27],[36,28,36,33]]}
["USDA",null,null,null,null,null,null,null,null,null,null,null,null,null,null,null,null,null,null,null,null,null,null,null,null,null,null,null,null,null,null,null,null,null,null,null,null,null,null,null,null,null,null,null,null,null,null,null,null,null,null,null,null,null,null,null,null,null,null,null,null,null,"KS-ECS-590"]
["NRCS",null,null,null,null,null,null,null,null,null,"Nutrient Management - 590",null,null,null,null,null,null,null,null,null,null,null,null,null,null,null,null,null,null,null,null,null,null,null,null,null,null,null,null,null,null,null,null,null,null,null,null,null,null,null,null,null,null,null,null,null,null,null,null,null,null,null,null,null,null,null,"Rev. 10/16"]
[]
["Name",null,null,null,null,null,null,null,null,null,null,null,null,null,null,null,null,null,null,null,null,null,null,null,null,null,null,null,null,null,null,null," Date",null,null,null,null,null,null,null,null,null,null,null,null,null,null,null,null,null,null,null,"Ident. No."]
[]
["Legal Desc.",null,null,null,null,null,null,null,null,null,null,null,null,null,null,null,null,null,null,null,null,null,null,null,null,null,null,null,null,null,"Field No.",null,null,null,null,null,null,null,null,null,null,null,null,null,null,null,null,null,null,null,null,null,"County"]
[]
[]
[]
[]
["Acreage",null,null,null,null,null,null,null,null,null,null,null,null,null,null,null,null,null,null,null,null,null,null,null,null,null,null,null,null,null,null,null,null,null,null,null,null,null,null,"Environmental management indicators"]
["Predominant soil type",null,null,null,null,null,null,null,null,null,null,null,null,null,null,null,null,null,null,null,null,null,null,null,null,null,null,null,null,null,null,null,null,null,null,null,null,null,null,"RUSLE2 soil erosion:",null,null,null,null,null,null,null,null,null,null,null,null,null,null,null,null,null,null,null,null,null,null,null,null,null,null,null,"tons/acre"]
["Tillage system",null,null,null,null,null,null,null,null,null,null,null,null,null,null,null,null,null,null,null,null,null,null,null,null,null,null,null,null,null,null,null,null,null,null,null,null,null,null,"Phosphorous index (if needed)"]
["Irrigated",null,null,null,null,null,null,null,null,null,null,null,null,null,null,null,null,null,null,null,null,null,null,null,null,null,null,null,null,null,null,null,null,null,null,null,null,null,null,"Leaching index (check one)"]
["Crop"]
["Yield goal",null,null,null,null,null,null,null,null,null,null,null,null,null,null,null,null,null,null,null,null,null,null,null,null,null,null,null,null,null,null,null,null,null,null,null,null,null,null,"Manure application (check one)"]
["Previous crop"]
["Previous yield"]
["Next crop"]
["Next yield goal"]
["Planned crop rotation"]
[]
[]
["Soil analysis results"]
["Sample date1",null,null,null,null,null,null,null,null,null,null,null,null,null,null,null,null,"Surface depth",null,null,null,null,null,null,null,null,null,null,null,null,null,"in",null,null,"Profile depth",null,null,null,null,null,null,null,null,null,null,null,null,"in",null,null,"Phos method",null,null,null,null,null,null,null,null,null,"Bray",null,null,null,null," Mehlich",null,null,null,null,null,null," Olsen"]
[]
["Soil pH",null,null,null,null,"Buffer pH",null,null,null,null,"Organic Matter",null,null,null,null,"Surface     NO3-N",null,null,null,null,"Profile      NO3-N",null,null,null,null,"Phos-phorous",null,null,null,null,"Potassium",null,null,null,null,"Sulfur",null,null,null,null,"Zinc",null,null,null,null,"Chloride",null,null,null,null,"Other",null,null,null,null,"Other",null,null,null,null,"Other",null,null,null,null,"CEC",null,null,null,null,"Soil EC"]
[null,null,null,null,null,null,null,null,null,null,"%",null,null,null,null,"ppm",null,null,null,null,null,null,null,null,null,null,null,null,null,null,null,null,null,null,null,null,null,null,null,null,null,null,null,null,null,null,null,null,null,null,null,null,null,null,null,null,null,null,null,null,null,null,null,null,null,"meq/100gm",null,null,null,null,"mmhos/cm"]
[]
[]
[]
["Crop nutrient requirements and fertilizer applications"]
[null,null,null,null,null,null,null,null,null,null,null,null,null,null,null,null,null,null,null,null,null,null,null,null,null,null,null,null,"N",null,null,null,null,null,"P2O5",null,null,null,null,null,"K2O",null,null,null,null,null,"S",null,null,null,null,null,"Zn",null,null,null,null,null,"Cl",null,null,null,null,null,"Other",null,null,null,null,null,"Lime"]
[null,null,null,null,null,null,null,null,null,null,null,null,null,null,null,null,null,null,null,null,null,null,null,null,null,null,null,null,"lbs/acre ",null,null,null,null,null,null,null,null,null,null,null,null,null,null,null,null,null,null,null,null,null,null,null,null,null,null,null,null,null,null,null,null,null,null,null,null,null,null,null,null,null,"t/a ECCE"]
["Total nutrient requirement2"]
[null,null,null,null,null,null,null,null,null,null,null,null,null,null,null,null,null,null,null,null,null,null,null,null,null,null,null,null,"Nutrient Credits"]
["Profile Nitrate-N, Cl, S3"]
["Soil organic matter4",null,null,null,null,null,null,null,null,null,null,null,null,null,null,null,null,null,null,null,null,null,null,null,null,null,null,null,null,null,null,null,null,null,null,null,null,null,null,null,null,null,null,null,null,null,null,null,null,null,null,null,null,null,null,null,null,null,null,null,null,null,null,null,null,null,null,null,null,null,null,null,null,null,null,null,null,null,null,null,null,null,null,null,null,null,null,null,null,null,null,null,null,null,null,null,null,null,null,null,null,null,null,null,null,null,null,null,null,null,null,null,null,null,null,null,null,null,null,null,null,null,null,null,null,null,null,null,null,null,null,null,null,null,null,null,null,null,null,null,null,null,null,null,null,null,null,null,null,null,null,null,null," Nitrate (32-0-0)"]
["Previous crop adjustment5",null,null,null,null,null,null,null,null,null,null,null,null,null,null,null,null,null,null,null,null,null,null,null,null,null,null,null,null,null,null,null,null,null,null,null,null,null,null,null,null,null,null,null,null,null,null,null,null,null,null,null,null,null,null,null,null,null,null,null,null,null,null,null,null,null,null,null,null,null,null,null,null,null,null,null,null,null,null,null,null,null,null,null,null,null,null,null,null,null,null,null,null,null,null,null,null,null,null,null,null,null,null,null,null,null,null,null,null,null,null,null,null,null,null,null,null,null,null,null,null,null,null,null,null,null,null,null,null,null,null,null,null,null,null,null,null,null,null,null,null,null,null,null,null,null,null,null,null,null,null,null,null,"Urea (46-0-0)"]
["Irrigation water6",null,null,null,null,null,null,null,null,null,null,null,null,null,null,null,null,null,null,null,null,null,null,null,null,null,null,null,null,null,null,null,null,null,null,null,null,null,null,null,null,null,null,null,null,null,null,null,null,null,null,null,null,null,null,null,null,null,null,null,null,null,null,null,null,null,null,null,null,null,null,null,null,null,null,null,null,null,null,null,null,null,null,null,null,null,null,null,null,null,null,null,null,null,null,null,null,null,null,null,null,null,null,null,null,null,null,null,null,null,null,null,null,null,null,null,null,null,null,null,null,null,null,null,null,null,null,null,null,null,null,null,null,null,null,null,null,null,null,null,null,null,null,null,null,null,null,null,null,null,null,null,null,"DAP(18-46-0)"]
["Manure7",null,null,null,null,null,null,null,null,null,null,null,null,null,null,null,null,null,null,null,null,null,null,null,null,null,null,null,null,null,null,null,null,null,null,null,null,null,null,null,null,null,null,null,null,null,null,null,null,null,null,null,null,null,null,null,null,null,null,null,null,null,null,null,null,null,null,null,null,null,null,null,null,null,null,null,null,null,null,null,null,null,null,null,null,null,null,null,null,null,null,null,null,null,null,null,null,null,null,null,null,null,null,null,null,null,null,null,null,null,null,null,null,null,null,null,null,null,null,null,null,null,null,null,null,null,null,null,null,null,null,null,null,null,null,null,null,null,null,null,null,null,null,null,null,null,null,null,null,null,null,null,null,"MAP (11-52-0)"]
["Tillage8",null,null,null,null,null,null,null,null,null,null,null,null,null,null,null,null,null,null,null,null,null,null,null,null,null,null,null,null,null,null,null,null,null,null,null,null,null,null,null,null,null,null,null,null,null,null,null,null,null,null,null,null,null,null,null,null,null,null,null,null,null,null,null,null,null,null,null,null,null,null,null,null,null,null,null,null,null,null,null,null,null,null,null,null,null,null,null,null,null,null,null,null,null,null,null,null,null,null,null,null,null,null,null,null,null,null,null,null,null,null,null,null,null,null,null,null,null,null,null,null,null,null,null,null,null,null,null,null,null,null,null,null,null,null,null,null,null,null,null,null,null,null,null,null,null,null,null,null,null,null,null,null,"TSP (0-46-0)"]
["Other",null,null,null,null,null,null,null,null,null,null,null,null,null,null,null,null,null,null,null,null,null,null,null,null,null,null,null,null,null,null,null,null,null,null,null,null,null,null,null,null,null,null,null,null,null,null,null,null,null,null,null,null,null,null,null,null,null,null,null,null,null,null,null,null,null,null,null,null,null,null,null,null,null,null,null,null,null,null,null,null,null,null,null,null,null,null,null,null,null,null,null,null,null,null,null,null,null,null,null,null,null,null,null,null,null,null,null,null,null,null,null,null,null,null,null,null,null,null,null,null,null,null,null,null,null,null,null,null,null,null,null,null,null,null,null,null,null,null,null,null,null,null,null,null,null,null,null,null,null,null,null,null,"Potash (0-0-60)"]
[]
["Fertilizer recommendations",null,null,null,null,null,null,null,null,null,null,null,null,null,null,null,null,null,null,null,null,null,null,null,null,null,null,null,{"$f":"IF((AC35-(SUM(AC37:AC43)))>0,AC35-(SUM(AC37:AC43)),0)","v":0},null,null,null,null,null,{"$f":"IF((AI35-(SUM(AI37:AI43)))>0,AI35-(SUM(AI37:AI43)),0)","v":0},null,null,null,null,null,{"$f":"IF((AO35-(SUM(AO37:AO43)))>0,AO35-(SUM(AO37:AO43)),0)","v":0},null,null,null,null,null,{"$f":"IF((AU35-(SUM(AU37:AU43)))>0,AU35-(SUM(AU37:AU43)),0)","v":0},null,null,null,null,null,{"$f":"IF((BA35-(SUM(BA37:BA43)))>0,BA35-(SUM(BA37:BA43)),0)","v":0},null,null,null,null,null,{"$f":"IF((BG35-(SUM(BG37:BG43)))>0,BG35-(SUM(BG37:BG43)),0)","v":0},null,null,null,null,null,{"$f":"IF((BM35-(SUM(BM37:BM43)))>0,BM35-(SUM(BM37:BM43)),0)","v":0},null,null,null,null,null,{"$f":"IF((BS35-(SUM(BS37:BS43)))>0,BS35-(SUM(BS37:BS43)),0)","v":0}]
[]
["Source",null,null,null,null,null,null,null,null,"Appl. Method9",null,null,null,null,"Rate      Applied",null,null,null,null,null,null,null,"Date Applied",null,null,null,null,null,"N",null,null,null,null,null,"P2O5",null,null,null,null,null,"K2O",null,null,null,null,null,"S",null,null,null,null,null,"Zn",null,null,null,null,null,"Cl",null,null,null,null,null,"Other",null,null,null,null,null,"Lime"]
[null,null,null,null,null,null,null,null,null,null,null,null,null,null,null,null,null,null,null,null,null,null,null,null,null,null,null,null,"planned",null,null,"applied",null,null,"planned",null,null,"applied",null,null,"planned",null,null,"applied",null,null,"planned",null,null,"applied",null,null,"planned",null,null,"applied",null,null,"planned",null,null,"applied",null,null,"planned",null,null,"applied",null,null,"planned",null,null,"applied"]
[" Nitrate (32-0-0)",null,null,null,null,null,null,null,null,null,null,null,null,null,null,null,null,null,null,null,null,null," "]
["DAP(18-46-0)"]
[null,null,null,null,null,null,null,null,null,null,null,null,null,null,null,null,null,null,null,null,null,null," "]
[]
[]
[]
[]
["Total nutrients supplied",null,null,null,null,null,null,null,null,null,null,null,null,null,null,null,null,null,null,null,null,null,null,null,null,null,null,null,null,null,null,{"$f":"SUM(AF49:AH54)","v":0},null,null,{"$f":"SUM(AI49:AK54)","v":0},null,null,{"$f":"SUM(AL49:AN54)","v":0},null,null,{"$f":"SUM(AO49:AQ54)","v":0},null,null,{"$f":"SUM(AR49:AT54)","v":0},null,null,{"$f":"SUM(AU49:AW54)","v":0},null,null,{"$f":"SUM(AX49:AZ54)","v":0},null,null,{"$f":"SUM(BA49:BC54)","v":0},null,null,{"$f":"SUM(BD49:BF54)","v":0},null,null,{"$f":"SUM(BG49:BI54)","v":0},null,null,{"$f":"SUM(BJ49:BL54)","v":0},null,null,{"$f":"SUM(BM49:BO54)","v":0},null,null,{"$f":"SUM(BP49:BR54)","v":0},null,null,{"$f":"SUM(BS49:BU54)","v":0},null,null,{"$f":"SUM(BV49:BX54)","v":0}]
[]
["Nutrient balance",null,null,null,null,null,null,null,null,null,null,null,null,null,null,null,null,null,null,null,null,null,null,null,null,null,null,null,{"$f":"AC56-(AC35-SUM(AC37:AC43))","v":0},null,null,{"$f":"AF56-(AC35-SUM(AC37:AC43))","v":0},null,null,{"$f":"AI56-(AI35-SUM(AI37:AI43))","v":0},null,null,{"$f":"AL56-(AI35-SUM(AI37:AI43))","v":0},null,null,{"$f":"AO56-(AO35-SUM(AO37:AO43))","v":0},null,null,{"$f":"AR56-(AO35-SUM(AO37:AO43))","v":0},null,null,{"$f":"AU56-(AU35-SUM(AU37:AU43))","v":0},null,null,{"$f":"AX56-(AU35-SUM(AU37:AU43))","v":0},null,null,{"$f":"BA56-(BA35-SUM(BA37:BA43))","v":0},null,null,{"$f":"BD56-(BA35-SUM(BA37:BA43))","v":0},null,null,{"$f":"BG56-(BG35-SUM(BG37:BG43))","v":0},null,null,{"$f":"BJ56-(BG35-SUM(BG37:BG43))","v":0},null,null,{"$f":"BM56-(BM35-SUM(BM37:BM43))","v":0},null,null,{"$f":"BP56-(BM35-SUM(BM37:BM43))","v":0},null,null,{"$f":"BS56-(BS35-SUM(BS37:BS43))","v":0},null,null,{"$f":"BV56-(BS35-SUM(BS37:BS43))","v":0}]
[]
[]
[]
[]
[]
[]
[]
[]
[]
[]
[]
[]
[]
[]
[]
[]
[]
[]
[]
[]
[]
[]
[]
[]
[" ",null,null,null,null,null,null,null,null,null,null,null,null,null,null,null,null,null,null,null,null,null,null,null,null,null,null,null,null,null,null,null,null,null,null,null,null,null,null,null,null,null,null,null,null,null,null,null,null,null,null,null,null,null,null,null,null,null,null,null,null,null,null,null,null,null,"KS-ECS-590"]
[" ",null,null,null,null,null,null,null,null,null," ",null,null,null,null,null,null,null,null,null,null,null,null,null,null,null,null,null,null,null,null,null,null,null,null,null,null,null,null,null,null,null,null,null,null,null,null,null,null,null,null,null,null,null,null,null,null,null,null,null,null,null,null,null,null,null,"Page 2"]
[]
["Legal Desc.:",null,null,null,null,null,".",null,null,null,null,null,null,null,null,null,null,null,null,null,null,null,null,null,null,null,null,null,"Field No.:"]
[]
[]
["Environmental risk assessment"]
[]
[" Y",null,null,"  N",null,null,null,null,null,null,null,null,null,null,null,null,null,null,null,null,null,null,null,null,null,null,null,null,null,null,null,null,null,null,null,null,null,null," Y",null,null,"  N"]
[null,null,null,null,null,null,"P total maximum daily load TDML area",null,null,null,null,null,null,null,null,null,null,null,null,null,null,null,null,null,null,null,null,null,null,null,null,null,null,null,null,null,null,null,null,null,null,null,null,null,"Wellhead setback"]
[null,null,null,null,null,null,"Kansas Geological Survey groundwater sensitive area",null,null,null,null,null,null,null,null,null,null,null,null,null,null,null,null,null,null,null,null,null,null,null,null,null,null,null,null,null,null,null,null,null,null,null,null,null,"Adjacent to intermittent/perennial stream (less than 300 feet)"]
[null,null,null,null,null,null,"P soil test greater than 50 ppm Bray 1/Mehlich III",null,null,null,null,null,null,null,null,null,null,null,null,null,null,null,null,null,null,null,null,null,null,null,null,null,null,null,null,null,null,null,null,null,null,null,null,null,"Flood frequency class (occasional or greater)"]
[null,null,null,null,null,null,"Irrigated field with irrigation water management ",null,null,null,null,null,null,null,null,null,null,null,null,null,null,null,null,null,null,null,null,null,null,null,null,null,null,null,null,null,null,null,null,null,null,null,null,null,"NRCS compliant buffer strips present"]
[null,null,null,null,null,null,"Adjacent to homes, buildings, etc.",null,null,null,null,null,null,null,null,null,null,null,null,null,null,null,null,null,null,null,null,null,null,null,null,null,null,null,null,null,null,null,null,null,null,null,null,null,"Sheet/rill erosion concerns"]
[null,null,null,null,null,null,"Shallow water tables (less than 10 feet deep)",null,null,null,null,null,null,null,null,null,null,null,null,null,null,null,null,null,null,null,null,null,null,null,null,null,null,null,null,null,null,null,null,null,null,null,null,null,"Gully erosion concerns"]
[null,null,null,null,null,null,"Water well in field ",null,null,null,null,null,null,null,null,null,null,null,null,null,null,null,null,null,null,null,null,null,null,null,null,null,null,null,null,null,null,null,null,null,null,null,null,null,"Other environmental concerns (detail in notes)"]
[]
[]
["Suggested best management practices",null,null,null,null,null,null,null,null,null,null,null,null,null,null,null,null,null,null,null,null,null,null,null,null,null,null,null,null,null,null,null,null,null,null,null,null,null,"Notes"]
[]
["Producer long-term objectives"]
[]
["Overall conservation plan objectives"]
[]
[]
["Attach a copy of an ArcGIS-generated conservation plan map denoting field boundary, field number, land use, acres, and north arrow as per National Planning Procedures Handbook, Section 600.31. "]
[]
[]
[]
["Nutrient Management Plan (NMP) Design"]
["This plan meets the standards and specifications established by Kansas NRCS."]
[]
[]
["   "]
[]
["Technical Service Provider (TSP)/NRCS",null,null,null,null,null,null,null,null,null,null,null,null,null,null,null,null,null,null,null,null,null,null,null,null,"Date"]
[]
["The NMP and operation and maintenance (O&M) have been discussed, and I concur with the plan and agree to perform the necessary O&M for the life of the practice.  Changes in the NMP are not allowed without approval of the NRCS representative or the TSP."]
[]
[]
[]
[]
["Producer Signature",null,null,null,null,null,null,null,null,null,null,null,null,null,null,null,null,null,null,null,null,null,null,null,null,"Date"]
[]
["Producer Implementation Statement"]
[]
["I have implemented the NMP detailed above on _________ acres."]
[]
[]
[]
[]
["Producer Signature",null,null,null,null,null,null,null,null,null,null,null,null,null,null,null,null,null,null,null,null,null,null,null,null,"Date"]
[]
["NRCS Approval"]
[]
["This producer has certified that the NMP was implemented as designed and meets practice standards and specifications criteria."]
[]
[]
[]
[]
["NRCS Signature",null,null,null,null,null,null,null,null,null,null,null,null,null,null,null,null,null,null,null,null,null,null,null,null,"Date"]
[]
[]
[null,null,null,null,null,null,null,null,"Kansas State University Experiment Station, Cooperative Extension Service, and the Natural Resources Conservation Service."]

{"sheet":"Feeding Area Instructions","index":1,"n_rows":27,"n_cols":3,"rows_kept":27,"cut":false,"hidden":false,"merged":[[16,0,16,2],[10,0,10,2],[3,0,3,2],[4,0,4,2],[6,0,6,2],[7,0,7,2],[8,0,8,2],[11,0,11,2],[12,0,12,2],[13,0,13,2],[14,0,14,2],[15,0,15,2],[18,0,18,2],[19,0,19,2],[22,0,22,2],[23,0,23,2],[21,0,21,2]]}
["USDA",null,"KS"]
["NRCS","Livestock Seasonal Feeding Area worksheet (561) - Instructions","03/2016"]
[]
["Overview"]
["This workheet can be used to identify and document potential resource concerns with livestock seasonal feeding areas.  It may also be used to document the effects of adopting different management options and the effects of installing different conservation practices.  "]
[]
["General"]
["As a general rule, the user will enter all data into yellow cells.  You can use the Tab key to move from one input to the next.  The rest of the spreadsheet is usually write-protected to prevent the accidental erasure of formulas. "]
["You can save with a .xlt extension (template) and use a shortcut icon on your screen to access the spreadsheet (the \"save\" or \"save as\" will not copy over the template).  You can make changes to the template file by using Excel to load the file and save.  "]
[]
["\"Assessment Tool\" Sheet"]
["Enter the client name, site ID, county, and the person completing the worksheet along with the date in the upper section in the cells shaded yellow."]
["Note the required site characteristics for this worksheet.  The site in question must meet all of the characteristics to use this assessment tool.  Any site characteristics that are not met are identified as a resource concern that cannot be addressed with CPS 560 or CPS 561."]
["The rest of the worksheet is divided into optional, other, and additional site characteristics.  Each of these has different point values assigned for the three conditions of \"Best\", \"Average\", and \"Worst\".  Using the descriptions given for each individual item, assign a point value from the pick list that best fits the current condition in the Before Points column."]
["Information can be added in the Notes column to help explain the rating used."]
["If the Risk Rating for the Current Condition is Low, no resource concerns have been identified that can be addressed by CPS 560 or CPS 561.  Any item that rates as a worst may be addressed with other practices or management."]
["If the Risk Rating for the Current Condition is High, resource concerns have been identified.  Individual items that rated as \"Worst\" may be ones that can be addressed with CPS 560, CPS 561, or other practices.  The worksheet can be utilized to identify practices and management that can change the rating to \"Medium\" or \"Low\" by assigning new values in the After Points column.  Any item that rates as a worst should be the focus of practices or management changes.  Identify practices to be installed or changes to management in the notes sections to justify the After Points rating."]
[]
["Additional Sheets"]
["Attach a plan map showing the location of the assessment area.  The map should include the soils information used in the assessment and the locations of nearby water features that are needed for the assessment.  It should also identify the topographic information and any other items needed for the assessment."]
[]
["Printing and Saving"]
["Print the worksheet using standard print commands.  If the file was saved as a template as described above, save the file in the customer folder.  If the worksheet was not saved as a template, be sure to use the \"save as\" command to save in the customer folder.  All items can be cleared in the yellow shaded cells using the clear contents command."]
[]
[]
[]
[null,"Feeding area Climate Region Map"]

{"sheet":"Feeding Area Assessment Tool","index":2,"n_rows":36,"n_cols":14,"rows_kept":36,"cut":false,"hidden":false,"merged":[[0,1,0,4],[1,1,1,7],[2,2,2,3],[2,6,2,7],[3,2,3,3],[3,6,3,7],[10,2,10,6],[32,1,32,6],[33,1,34,7],[35,1,36,7],[4,2,4,3],[5,1,5,6],[6,2,6,6],[7,2,7,6],[8,2,8,6],[9,2,9,6]]}
[null,"Livestock Seasonal Feeding Area Assessment Tool",null,null,null,null,null,"Ver. 3.3, Mar 2016"]
[null,"Assign point values for the before and after condition of the feeding area and surrounding area based on the description for each item using the suggested point values for each group of site characteristics.  Add notes for each item to document point value assigned.",null,null,null,null,null,null,null,null,null,4,3,2]
[null,"Client Name  ",null,null,null,"Site Id.",null,null,null,null,null,12,9,6]
[null,"Assisted by  ",null,null,null,"County",null,null,null,null,null,20,15,10]
[null,"Date  "]
[null,"Low Risk (<64)             Medium Risk (64-115)                High Risk (>115)"]
[null,null,"Required Site Characteristics"]
[null,"Flooding Potential","No Flooding on feeding area from 25 year storm, not on frequently flooded soils"]
[null,"Surface Water Runoff Entering Feeding Area","No runoff water passes through feeding area as sheet or concentrated flow"]
[null,"Feeding Area Setback-Residence","More than 300 feet setback required from the feed area to any public use facility or any residence other than the owner "]
[null,"Feeding Area Distance to a Sensitive Area (Stream, well, pond, wetland, or concentrated flow area with little vegetation)","Distance between livestock feeding area and sensitive area equals at least 100 feet at closest point   "]
[null,"Optional Site Characteristics (points)\nRunoff risk and potential manure volume ","4-Best","12-Average","20-Worst","Before Points","After Points","Notes"]
[null,"Typical Slope of Feeding Area ","less than 2%","2% - 5%","more than 5%"]
[null,"Animal Units per acre of Feeding Area (pasture unit where animals are confined) 1","less than 1 AU/acre"," 1-2","more than 2 AU/acre"]
[null,"Predominant Hydrologic Soil Group in location of feeding area","A  or B","C","D"]
[null,"Climate Region of Feeding Area (See map in Instructions)","Climate Region 1","Climate Region 2","Climate Region 3"]
[null,null,null,null,"SubTotal",{"$f":"SUM(F13:F16)","v":0},{"$f":"SUM(G13:G16)","v":0}]
[null,"Other Site Characteristics (points)\nFeeding Area, Buffer, and Management","3-Best","9-Average","15-Worst","Before Points","After Points","Notes"]
[null,"Vegetation in area between Feeding Area and Sensitive Area (Poor < 50% ground cover; Fair 50 to 75% ground cover; Good > 75% ground cover)","Permanent vegetation, good condition","Permanent vegetation, fair condition; or cropland treated with conservation practices","Permanent vegetation, poor condition; or untreated cropland; or annual vegetation"]
[null,"Distance between Feeding Area and Sensitive Area ","More than 300 feet of width","150 to 300  feet ","Less than 150 feet "]
[null,"Size of feeding area and/or road/travel paths void of vegetation or gravel that become muddy during winter months","Less than 0.2 acre","0.2 -1.0 acre","More than 1.0 acre"]
[null,"Months animals use each Feeding Area per winter","Less than 3 months","3 - 6 months","More than 6 months"]
[null,"Manure Collection and Storage","Manure is collected and stored in facility that has runoff controls meeting either NRCS CPS 313 or 635 ","Manure collection not required due to feeding area rotation or collected and stored with waste feed away from feeding area ","Manure accumulates in feeding area but is not collected or stored. "]
[null,"Feeding Area Management - Reduced animal stress due to muddy conditions in feeding area ","Feed Area is frequently rotated with permanent vegetation in good condition remaining in feeding areas"," Feed Area is located on HUA or rotated on permanent vegetation in fair condition","Feed Area  is not rotated, is not on HUA, or is located on permanent vegetation in poor condition"]
[null,null,null,null,"SubTotal",{"$f":"SUM(F19:F24)","v":0},{"$f":"SUM(G19:G24)","v":0}]
[null,"Additional Site Characteristics (points)","2-Best","6-Average","10-Worst","Before Points","After Points","Notes"]
[null,"Watering Source","Off-site waterers - no access to waterbody","Controlled access to waterbody","Uncontrolled access to waterbody"]
[null,"Nutrient Management","Stored manure spread according to nutrient management priciples 2","Stored manure spread without nutrient management; or storage not required","Manure not collected or stored. Little or no manure spreading"]
[null,null,null,null,"SubTotal",{"$f":"SUM(F27:F28)","v":0},{"$f":"SUM(G27:G28)","v":0}]
[null,null,null,null,"Grand Total",{"$f":"F17+F25+F29","v":0},{"$f":"G17+G25+G29","v":0}]
[null,null,null,null,"Time Period","Current","Future"]
[null,"Additional Notes: ",null,null,"Risk Rating =",{"$f":"IF(F30<64.1,\"Low\",IF(F30>115,\"High\",\"Medium\"))","v":"Low"},{"$f":"IF(G30<64.1,\"Low\",IF(G30>115,\"High\",\"Medium\"))","v":"Low"}]
[]
[null,"1: Consult with a Range Conservationist to determine how the site can best be managed to meet producer objectives while protecting grassland health.  \"Average\" or \"Best\" may be claimed for design conditions outside set values if the Range Conservationist deems it appropriate."]
[]
[null,"2: A CNMP is not necessarily needed unless it is required for and associated practice such as CPS 313 \"Waste Storage\".  Manure should be spread at agronomic rates on non-frozen soils with proper buffer distances to water bodies and other sensitive resources."]

{"sheet":"Dropdown Lists","index":3,"n_rows":9,"n_cols":1,"rows_kept":9,"cut":false,"hidden":true,"merged":[]}
["PS"]
["BS"]
["BI"]
["KP"]
["SD"]
["TD"]
["SI"]
["FI"]
["O"]